fUSD/lending_fUSD_20250421
["ID","MTS","AMOUNT","RATE_DAILY","PERIOD"]
[358487445,1745206232322,-500.0,0.00042999,31]
[358487446,1745206232488,-585.05192772,0.00042999,31]
[358487447,1745206232499,-500.0,0.00042999,31]
[358487448,1745206232510,-500.0,0.00042999,31]
[358487449,1745206232519,-500.0,0.00042999,31]
[358487450,1745206232528,-500.0,0.00042999,31]
[358487451,1745206232537,-500.0,0.00042999,31]
[358487452,1745206232547,-170.15608803,0.00042999,31]
[358487453,1745206232556,-500.0,0.00042999,31]
[358487454,1745206232566,-14569.76769705,0.00043,2]
[358487455,1745206232576,-170.3025,0.000437,2]
[358487456,1745206232585,-752.05365705,0.000439,15]
[358487457,1745206232594,-4944.92841512,0.000439,15]
[358487458,1745206232603,-154.484398,0.00044,2]
[358487459,1745206232613,-4204.0,0.00044935,5]
[358487460,1745206232622,-151.0,0.00045,120]
[358487461,1745206232631,-348.76,0.00045242,2]
[358487462,1745206232641,-169.73404949,0.00045545,2]
[358487463,1745206232650,-940.50882984,0.00047313,2]
[358487464,1745206232659,-1696.316,0.00047356,2]
[358487465,1745206232668,-646.877,0.00047356,2]
[358487466,1745206232677,-522.659,0.00047356,2]
[358487467,1745206232687,-688.695,0.00047356,2]
[358487468,1745206232696,-1334.609,0.00047356,2]
[358487469,1745206232705,-222.705,0.00048,120]
[358487470,1745206232714,-9196.4659,0.000481,2]
[358487471,1745206232724,-152.27,0.000482,45]
[358487472,1745206232734,-152.27,0.000482,45]
[358487473,1745206232746,-154.24071291,0.000482,30]
[358487474,1745206232755,-169.73404949,0.00048209,2]
[358487475,1745206232764,-154.484398,0.00048288,60]
[358487476,1745206232774,-170.3025,0.00048288,60]
[358487477,1745206232783,-24467.84783872,0.00048309,30]
[358487478,1745206232795,-2621.88037962,0.00048309,30]
[358487482,1745206237791,-876.49937008,0.000329,30]
[358487483,1745206237803,-369.50775994,0.000329,30]
[358487484,1745206237816,-458.87002913,0.000329,30]
[358487485,1745206237826,-324.45997087,0.00048309,30]
[358487486,1745206237839,-25829.69923047,0.00048309,30]
[358487487,1745206237848,-7762.03666952,0.00048309,30]
[358487488,1745206237860,-192.4218328,0.00048309,30]
[358487489,1745206237869,-5593.3443668,0.00048309,120]
[358487490,1745206237880,-2072.95149155,0.00048309,120]
[358487491,1745206237892,-4688.42003455,0.00048309,120]
[358487492,1745206237905,-3236.91774019,0.00048309,120]
[358487493,1745206237916,-2030.14350278,0.00048309,2]
[358487494,1745206237926,-515.3893978,0.00048309,7]
[358487495,1745206237936,-870.39588657,0.00048309,7]
[358487496,1745206237946,-431.64819948,0.00048309,7]
[358487497,1745206237962,-604.00786712,0.00048309,7]
[358487498,1745206237971,-1282.41808615,0.00048309,4]
[358487499,1745206237980,-155.9822881,0.00048309,120]
[358487500,1745206237989,-464.43762623,0.00048309,7]
[358487501,1745206237999,-198.29213581,0.00048309,30]
[358487502,1745206238009,-19185.91173119,0.00048309,2]
[358487503,1745206238019,-544.74813969,0.00048309,7]
[358487504,1745206238028,-340.98392406,0.00048309,7]
[358487505,1745206238038,-919.34116435,0.00048309,3]
[358487506,1745206238047,-2052.36118263,0.00048309,3]
[358487507,1745206238057,-2206.38923674,0.00048309,120]
[358487508,1745206238066,-5644.04500891,0.00048309,60]
[358487509,1745206238075,-6769.30542746,0.00048309,4]
[358487510,1745206238084,-503.81515336,0.00048309,5]
[358487511,1745206238094,-5195.16721556,0.00048309,4]
[358487512,1745206238103,-155.95826121,0.00048309,30]
[358487513,1745206238112,-769.67369255,0.00048309,2]
[358487514,1745206238121,-1932.53777144,0.00048309,2]
[358487515,1745206238131,-1666.49883423,0.000488,120]
[358487516,1745206238140,-173.72,0.0004895,10]
[358487517,1745206238150,-154.484398,0.0004896,3]
[358487518,1745206238159,-170.3025,0.0004896,3]
[358487519,1745206238168,-1000.0,0.0004896,2]
[358487520,1745206238178,-1000.0,0.0004896,2]
[358487521,1745206238187,-1000.0,0.0004896,2]
[358487522,1745206238196,-1000.0,0.0004896,2]
[358487523,1745206238206,-1000.0,0.0004896,2]
[358487524,1745206238215,-1000.0,0.0004896,2]
[358487525,1745206238225,-1000.0,0.0004896,2]
[358487526,1745206238234,-1000.0,0.0004896,2]
[358487528,1745206238243,-1000.0,0.0004896,2]
[358487529,1745206238252,-1000.0,0.0004896,2]
[358487530,1745206238262,-1000.0,0.0004896,2]
[358487531,1745206238271,-1000.0,0.0004896,2]
[358487532,1745206238281,-1000.0,0.0004896,2]
[358487533,1745206238290,-1000.0,0.0004896,2]
[358487534,1745206238299,-1000.0,0.0004896,2]
[358487535,1745206238309,-1000.0,0.0004896,2]
[358487536,1745206238318,-1000.0,0.0004896,2]
[358487537,1745206238327,-1000.0,0.0004896,2]
[358487538,1745206238336,-1000.0,0.0004896,2]
[358487539,1745206238346,-1000.0,0.0004896,2]
[358487540,1745206238355,-1000.0,0.0004896,2]
[358487541,1745206238365,-1000.0,0.0004896,2]
[358487543,1745206238374,-1000.0,0.0004896,2]
[358487545,1745206238383,-1000.0,0.0004896,2]
[358487547,1745206238392,-1000.0,0.0004896,2]
[358487549,1745206238401,-1000.0,0.0004896,2]
[358487551,1745206238410,-1000.0,0.0004896,2]
[358487553,1745206238419,-1000.0,0.0004896,2]
[358487555,1745206238429,-1000.0,0.0004896,2]
[358487557,1745206238438,-1000.0,0.0004896,2]
[358487559,1745206238447,-1000.0,0.0004896,2]
[358487561,1745206238457,-1000.0,0.0004896,2]
[358487563,1745206238467,-1000.0,0.0004896,2]
[358487565,1745206238476,-1000.0,0.0004896,2]
[358487567,1745206238485,-1000.0,0.0004896,2]
[358487569,1745206238494,-1000.0,0.0004896,2]
[358487572,1745206238505,-1000.0,0.0004896,2]
[358487574,1745206238516,-1000.0,0.0004896,2]
[358487576,1745206238525,-1000.0,0.0004896,2]
[358487578,1745206238534,-1000.0,0.0004896,2]
[358487580,1745206238545,-1000.0,0.0004896,2]
[358487582,1745206238555,-1000.0,0.0004896,2]
[358487583,1745206238565,-1000.0,0.0004896,2]
[358487585,1745206238574,-1000.0,0.0004896,2]
[358487587,1745206238585,-1000.0,0.0004896,2]
[358487589,1745206238595,-1000.0,0.0004896,2]
[358487591,1745206238604,-1000.0,0.0004896,2]
[358487593,1745206238613,-1000.0,0.0004896,2]
[358487595,1745206238623,-1000.0,0.0004896,2]
[358487597,1745206238631,-1000.0,0.0004896,2]
[358487599,1745206238641,-1000.0,0.0004896,2]
[358487601,1745206238652,-1000.0,0.0004896,2]
[358487603,1745206238661,-1000.0,0.0004896,2]
[358487605,1745206238671,-1000.0,0.0004896,2]
[358487607,1745206238681,-1000.0,0.0004896,2]
[358487609,1745206238690,-1000.0,0.0004896,2]
[358487611,1745206238700,-1000.0,0.0004896,2]
[358487613,1745206238710,-1000.0,0.0004896,2]
[358487615,1745206238719,-1000.0,0.0004896,2]
[358487617,1745206238729,-1000.0,0.0004896,2]
[358487619,1745206238741,-1000.0,0.0004896,2]
[358487621,1745206238752,-1000.0,0.0004896,2]
[358487623,1745206238762,-1000.0,0.0004896,2]
[358487625,1745206238771,-1000.0,0.0004896,2]
[358487627,1745206238783,-1000.0,0.0004896,2]
[358487629,1745206238792,-1000.0,0.0004896,2]
[358487631,1745206238802,-1000.0,0.0004896,2]
[358487633,1745206238813,-1000.0,0.0004896,2]
[358487635,1745206238822,-1000.0,0.0004896,2]
[358487637,1745206238832,-1000.0,0.0004896,2]
[358487639,1745206238841,-1000.0,0.0004896,2]
[358487641,1745206238851,-1000.0,0.0004896,2]
[358487643,1745206238859,-1000.0,0.0004896,2]
[358487645,1745206238868,-1000.0,0.0004896,2]
[358487647,1745206238877,-1000.0,0.0004896,2]
[358487649,1745206238886,-1000.0,0.0004896,2]
[358487651,1745206238895,-1000.0,0.0004896,2]
[358487653,1745206238904,-1000.0,0.0004896,2]
[358487655,1745206238914,-1000.0,0.0004896,2]
[358487657,1745206238923,-1000.0,0.0004896,2]
[358487659,1745206238931,-917.0,0.0004896,2]
[358487661,1745206238941,-3000.0,0.000495,2]
[358487663,1745206238950,-152.21197787,0.000498,120]
[358487665,1745206238959,-752.05365705,0.000499,15]
[358487667,1745206238968,-4944.92841512,0.000499,15]
[358487669,1745206238977,-42858.96124326,0.0004999,2]
[358487671,1745206238986,-155.49718137,0.0005,120]
[358487673,1745206238995,-1000.0,0.0005164,120]
[358487675,1745206239004,-1360.71,0.00051998,2]
[358487677,1745206239014,-293.20539615,0.00052,120]
[358487679,1745206239023,-368.0,0.000525,120]
[358487681,1745206239033,-166.67,0.00052533,2]
[358487683,1745206239042,-1680.98856841,0.00053,30]
[358487684,1745206239051,-461.23,0.00053323,2]
[358487685,1745206239061,-307.7618862,0.00054247,120]
[358487686,1745206239070,-934.17422598,0.00054295,30]
[358487687,1745206239079,-21383.68612229,0.000545,30]
[358487688,1745206239088,-919.836,0.000545,102]
[358487689,1745206239097,-186.82375619,0.000545,102]
[358487690,1745206239106,-152.27,0.000545,54]
[358487691,1745206239115,-152.27,0.000545,54]
[358487692,1745206239124,-152.27,0.000545,54]
[358487693,1745206239133,-152.27,0.000545,54]
[358487694,1745206239143,-154.484398,0.00054501,60]
[358487696,1745206239152,-170.3025,0.00054501,60]
[358487698,1745206239162,-154.484398,0.0005455,54]
[358487700,1745206239171,-154.484398,0.000546,54]
[358487702,1745206239180,-154.484398,0.0005465,54]
[358487704,1745206239189,-154.484398,0.000547,54]
[358487706,1745206239199,-151.0,0.000547,120]
[358487708,1745206239208,-469.60861698,0.00054795,120]
[358487710,1745206239218,-201.26083585,0.00054795,120]
[358487712,1745206239227,-156.02,0.0005489,120]
[358487714,1745206239237,-3126.59264757,0.000549,30]
[358487716,1745206239247,-400.0,0.000549,20]
[358487717,1745206239256,-154.484398,0.0005494,3]
[358487719,1745206239265,-170.3025,0.0005494,3]
[358487721,1745206239275,-162.73161502,0.00055,5]
[358487723,1745206239284,-418.5111103,0.00055,2]
[358487725,1745206239294,-152.06274689,0.00055,30]
[358487727,1745206239303,-151.0,0.00055,120]
[358487729,1745206239312,-150.0,0.00055328,7]
[358487731,1745206239321,-157.27,0.00055475,120]
[358487733,1745206239331,-170.3025,0.0005555,2]
[358487735,1745206239339,-461.23,0.00055587,2]
[358487737,1745206239348,-752.05365705,0.000559,15]
[358487739,1745206239357,-4944.92841512,0.000559,15]
[358487741,1745206239367,-250.0,0.00055926,120]
[358487743,1745206239376,-154.484398,0.00056,2]
[358487745,1745206239385,-151.0,0.00056265,120]
[358487747,1745206239394,-588.0,0.000563,120]
[358487749,1745206239404,-3260.45,0.00057309,2]
[358487751,1745206239413,-151.0,0.0005753,120]
[358487753,1745206239422,-461.23,0.00057851,2]
[358487755,1745206239431,-692.78,0.00057971,30]
[358487757,1745206239440,-797.18,0.00057971,30]
[358487759,1745206239449,-797.18,0.00057971,30]
[358487761,1745206239459,-797.18,0.00057971,30]
[358487763,1745206239468,-150.0,0.00057971,30]
[358487765,1745206239477,-150.0,0.00057971,30]
[358487767,1745206239486,-690.59,0.00057971,30]
[358487769,1745206239495,-150.0,0.00057971,30]
[358487772,1745206239505,-150.0,0.00057971,30]
[358487774,1745206239514,-2080.11848847,0.00058,120]
[358487777,1745206239523,-151.0,0.00058,120]
[358487779,1745206239533,-213.83,0.00058006,120]
[358487781,1745206239542,-673.84,0.00058041,30]
[358487783,1745206239551,-1000.0,0.00058095,120]
[358487785,1745206239561,-23900.0,0.00058623,2]
[358487787,1745206239571,-151.0,0.00058795,120]
[358487789,1745206239580,-152.86,0.00059616,120]
[358487791,1745206239590,-559.93081223,0.00059744,120]
[358487793,1745206239599,-178.93418074,0.0005978,8]
[358487795,1745206239608,-6085.46968871,0.0005987,120]
[358487799,1745206239623,-1350.41685308,0.0005987,120]
[358487801,1745206239633,-150.0,0.0006,2]
[358487803,1745206239642,-200.0,0.0006,120]
[358487805,1745206239652,-1000.0,0.0006,30]
[358487807,1745206239661,-787.03733661,0.0006,120]
[358487809,1745206239670,-421.05679157,0.0006,120]
[358487811,1745206239679,-1490.1983777,0.0006,120]
[358487813,1745206239689,-192.19748725,0.0006,30]
[358487815,1745206239698,-864.80066179,0.0006,120]
[358487817,1745206239710,-176.38956735,0.0006,30]
[358487819,1745206239720,-300.0,0.0006,2]
[358487821,1745206239729,-219.41,0.0006,120]
[358487823,1745206239744,-151.0,0.00060059,120]
[358487825,1745206239753,-461.23,0.00060115,2]
[358487827,1745206239763,-170.3025,0.000603,90]
[358487829,1745206239772,-154.484398,0.00060714,60]
[358487831,1745206239784,-170.3025,0.00060714,60]
[358487833,1745206239793,-152.27,0.000609,63]
[358487835,1745206239802,-152.27,0.000609,63]
[358487837,1745206239811,-152.27,0.000609,63]
[358487839,1745206239821,-152.27,0.000609,63]
[358487841,1745206239830,-154.484398,0.0006092,3]
[358487843,1745206239839,-170.3025,0.0006092,3]
[358487845,1745206239848,-166.67,0.00061203,2]
[358487847,1745206239857,-173.61327079,0.00061324,120]
[358487849,1745206239867,-151.0,0.000614,120]
[358487850,1745206239876,-7872.3225022,0.00061659,120]
[358487852,1745206239886,-752.05365705,0.000619,15]
[358487854,1745206239895,-4944.92841512,0.000619,15]
[358487856,1745206239906,-200.0,0.00062,120]
[358487858,1745206239915,-682.67813508,0.00062,120]
[358487860,1745206239925,-461.23,0.00062379,2]
[358487862,1745206239934,-514.9945,0.00062803,2]
[358487864,1745206239944,-500.0,0.00062813,2]
[358487866,1745206239953,-1000.0,0.00062813,30]
[358487868,1745206239962,-1300.0,0.000629,22]
[358487870,1745206239972,-17296.607,0.00062903,2]
[358487872,1745206239981,-170.3025,0.00062925,90]
[358487874,1745206239991,-1834.58,0.00063013,120]
[358487876,1745206240000,-500.0,0.00063013,120]
[358487878,1745206240010,-500.0,0.00063013,120]
[358487880,1745206240019,-547.93366165,0.00063013,120]
[358487882,1745206240028,-620.11,0.00063013,120]
[358487884,1745206240038,-500.0,0.00063013,2]
[358487886,1745206240047,-500.0,0.00063013,120]
[358487888,1745206240056,-500.0,0.00063013,2]
[358487890,1745206240066,-209.69741134,0.00063013,120]
[358487892,1745206240075,-500.0,0.00063013,120]
[358487894,1745206240084,-500.0,0.00063013,120]
[358487896,1745206240093,-500.0,0.00063013,120]
[358487898,1745206240102,-500.0,0.00063013,120]
[358487900,1745206240111,-500.0,0.00063013,120]
[358487902,1745206240120,-500.0,0.00063013,120]
[358487904,1745206240129,-500.0,0.00063013,120]
[358487906,1745206240139,-567.32689619,0.00063013,120]
[358487908,1745206240148,-521.99744672,0.00063013,120]
[358487910,1745206240157,-619.68236397,0.00063013,120]
[358487912,1745206240166,-219.51457797,0.00063013,120]
[358487914,1745206240176,-500.0,0.00063013,120]
[358487916,1745206240185,-527.21538115,0.00063013,120]
[358487918,1745206240194,-500.0,0.00063013,120]
[358487920,1745206240204,-500.0,0.00063013,120]
[358487921,1745206240213,-600.98,0.00063013,120]
[358487924,1745206240223,-500.0,0.00063013,120]
[358487926,1745206240235,-1604.29,0.00063013,120]
[358487928,1745206240248,-500.0,0.00063013,120]
[358487929,1745206240257,-849.39,0.00063013,120]
[358487931,1745206240267,-500.0,0.00063013,120]
[358487934,1745206240276,-500.0,0.00063013,120]
[358487936,1745206240287,-500.0,0.00063013,120]
[358487938,1745206240296,-500.0,0.00063013,120]
[358487939,1745206240306,-500.0,0.00063013,120]
[358487941,1745206240315,-1033.25,0.00063013,120]
[358487943,1745206240325,-190.13415407,0.00063013,120]
[358487945,1745206240334,-2091.49,0.00063013,120]
[358487947,1745206240344,-500.0,0.00063013,120]
[358487949,1745206240353,-500.0,0.00063013,120]
[358487961,1745206240487,-500.0,0.00063013,120]
[358487962,1745206240497,-500.0,0.00063013,120]
[358487963,1745206240507,-500.0,0.00063013,120]
[358487964,1745206240517,-169.95766509,0.00063013,120]
[358487965,1745206240526,-500.0,0.00063013,120]
[358487966,1745206240535,-500.0,0.00063013,120]
[358487967,1745206240544,-500.0,0.00063013,8]
[358487968,1745206240554,-500.0,0.00063013,120]
[358487969,1745206240563,-500.0,0.00063013,120]
[358487970,1745206240574,-500.0,0.00063013,120]
[358487971,1745206240583,-524.86949902,0.00063013,120]
[358487972,1745206240593,-500.0,0.00063013,120]
[358487973,1745206240603,-627.4494026,0.00063013,120]
[358487974,1745206240613,-500.0,0.00063013,120]
[358487975,1745206240622,-500.0,0.00063013,120]
[358487976,1745206240632,-500.0,0.00063013,120]
[358487977,1745206240641,-1928.23,0.00063013,120]
[358487978,1745206240651,-500.0,0.00063013,120]
[358487979,1745206240661,-500.0,0.00063013,120]
[358487980,1745206240670,-3439.08,0.00063013,2]
[358487981,1745206240679,-598.26690595,0.00063013,120]
[358487982,1745206240689,-523.30995052,0.00063013,120]
[358487983,1745206240698,-582.29981595,0.00063013,120]
[358487984,1745206240707,-341.0846403,0.00063013,120]
[358487985,1745206240717,-500.0,0.00063013,120]
[358487986,1745206240726,-500.0,0.00063013,120]
[358487987,1745206240735,-500.0,0.00063013,120]
[358487988,1745206240750,-500.0,0.00063013,120]
[358487989,1745206240760,-500.0,0.00063013,120]
[358487990,1745206240768,-500.0,0.00063013,120]
[358487991,1745206240777,-500.0,0.00063013,120]
[358487992,1745206240786,-500.0,0.00063013,120]
[358487993,1745206240795,-500.0,0.00063013,120]
[358487994,1745206240804,-500.0,0.00063013,120]
[358487995,1745206240813,-500.0,0.00063013,120]
[358487996,1745206240824,-592.70849031,0.00063013,120]
[358487997,1745206240833,-500.0,0.00063013,120]
[358487999,1745206240843,-500.0,0.00063013,120]
[358488001,1745206240852,-1438.39,0.00063013,120]
[358488003,1745206240862,-500.0,0.00063013,120]
[358488005,1745206240871,-600.26624842,0.00063013,120]
[358488007,1745206240880,-534.79878683,0.00063013,120]
[358488009,1745206240890,-500.0,0.00063013,120]
[358488011,1745206240899,-500.0,0.00063013,120]
[358488013,1745206240908,-500.0,0.00063013,120]
[358488015,1745206240917,-500.0,0.00063013,120]
[358488016,1745206240927,-500.0,0.00063013,118]
[358488018,1745206240936,-371.2802119,0.00063013,120]
[358488020,1745206240945,-575.20173136,0.00063013,120]
[358488022,1745206240954,-500.0,0.00063013,120]
[358488024,1745206240963,-500.0,0.00063013,120]
[358488026,1745206240972,-500.0,0.00063013,120]
[358488028,1745206240981,-500.0,0.00063013,120]
[358488030,1745206240990,-500.0,0.00063013,120]
[358488032,1745206240999,-500.0,0.00063013,120]
[358488034,1745206241008,-500.0,0.00063013,120]
[358488036,1745206241018,-517.07906823,0.00063013,120]
[358488038,1745206241027,-500.0,0.00063013,120]
[358488040,1745206241036,-500.0,0.00063014,120]
[358488042,1745206241045,-500.0,0.00063014,120]
[358488044,1745206241055,-500.0,0.00063014,120]
[358488046,1745206241064,-500.0,0.00063014,120]
[358488048,1745206241074,-500.0,0.00063014,120]
[358488050,1745206241083,-500.0,0.00063014,120]
[358488052,1745206241092,-500.0,0.00063014,120]
[358488054,1745206241102,-500.0,0.00063014,120]
[358488056,1745206241112,-500.0,0.00063014,120]
[358488058,1745206241121,-500.0,0.00063014,120]
[358488060,1745206241130,-500.0,0.00063014,120]
[358488062,1745206241140,-500.0,0.00063014,120]
[358488064,1745206241149,-500.0,0.00063014,120]
[358488066,1745206241159,-500.0,0.00063014,120]
[358488068,1745206241167,-500.0,0.00063014,120]
[358488070,1745206241177,-500.0,0.00063014,120]
[358488072,1745206241185,-500.0,0.00063014,120]
[358488074,1745206241194,-500.0,0.00063014,120]
[358488076,1745206241204,-500.0,0.00063014,120]
[358488078,1745206241213,-500.0,0.00063014,120]
[358488080,1745206241222,-500.0,0.00063014,120]
[358488082,1745206241231,-500.0,0.00063014,120]
[358488084,1745206241240,-500.0,0.00063014,120]
[358488086,1745206241250,-500.0,0.00063014,120]
[358488088,1745206241259,-500.0,0.00063014,120]
[358488090,1745206241268,-500.0,0.00063014,120]
[358488092,1745206241277,-500.0,0.00063014,120]
[358488094,1745206241286,-500.0,0.00063014,120]
[358488096,1745206241296,-500.0,0.00063014,120]
[358488098,1745206241305,-500.0,0.00063014,120]
[358488100,1745206241314,-500.0,0.00063014,120]
[358488102,1745206241323,-500.0,0.00063014,120]
[358488104,1745206241333,-500.0,0.00063014,120]
[358488106,1745206241343,-276.0679629,0.00063014,120]
[358488108,1745206241353,-500.0,0.00063014,120]
[358488110,1745206241363,-500.0,0.00063014,120]
[358488112,1745206241372,-500.0,0.00063014,120]
[358488114,1745206241382,-500.0,0.00063014,120]
[358488116,1745206241391,-500.0,0.00063014,120]
[358488118,1745206241402,-500.0,0.00063014,120]
[358488120,1745206241411,-500.0,0.00063014,120]
[358488122,1745206241420,-500.0,0.00063014,120]
[358488124,1745206241430,-500.0,0.00063014,120]
[358488126,1745206241439,-350.0,0.00063014,120]
[358488128,1745206241448,-500.0,0.00063014,120]
[358488130,1745206241457,-500.0,0.00063014,120]
[358488132,1745206241468,-500.0,0.00063014,120]
[358488134,1745206241477,-2262.96169248,0.00063014,120]
[358488136,1745206241486,-2262.96169248,0.00063014,120]
[358488138,1745206241495,-2262.96169248,0.00063014,120]
[358488140,1745206241505,-2262.96169248,0.00063014,120]
[358488142,1745206241515,-2262.96169248,0.00063014,120]
[358488144,1745206241524,-2262.96169248,0.00063014,120]
[358488146,1745206241534,-2262.96169248,0.00063014,120]
[358488148,1745206241543,-2262.96169248,0.00063014,120]
[358488150,1745206241553,-2262.96169248,0.00063014,120]
[358488152,1745206241562,-2262.96169248,0.00063014,120]
[358488154,1745206241572,-2262.96169248,0.00063014,120]
[358488156,1745206241581,-2262.96169248,0.00063014,120]
[358488158,1745206241590,-2262.96169248,0.00063014,120]
[358488160,1745206241599,-2262.96169248,0.00063014,120]
[358488162,1745206241608,-2262.96169248,0.00063014,120]
[358488164,1745206241618,-2262.96169248,0.00063014,120]
[358488166,1745206241627,-2262.96169248,0.00063014,120]
[358488168,1745206241637,-2262.96169248,0.00063014,120]
[358488170,1745206241646,-2262.96169248,0.00063014,120]
[358488172,1745206241655,-2262.96169248,0.00063014,120]
[358488174,1745206241664,-2262.96169248,0.00063014,120]
[358488176,1745206241673,-2262.96169248,0.00063014,120]
[358488178,1745206241683,-2262.96169248,0.00063014,120]
[358488180,1745206241692,-2262.96169248,0.00063014,120]
[358488182,1745206241701,-2262.96169248,0.00063014,120]
[358488184,1745206241711,-2262.96169248,0.00063014,120]
[358488186,1745206241720,-2262.96169248,0.00063014,120]
[358488188,1745206241730,-2262.96169248,0.00063014,120]
[358488190,1745206241742,-2262.96169248,0.00063014,120]
[358488192,1745206241752,-2262.96169248,0.00063014,120]
[358488194,1745206241762,-2262.96169248,0.00063014,120]
[358488196,1745206241772,-2262.96169248,0.00063014,120]
[358488198,1745206241782,-2262.96169248,0.00063014,120]
[358488201,1745206241792,-2262.96169248,0.00063014,120]
[358488203,1745206241801,-2262.96169248,0.00063014,120]
[358488205,1745206241811,-2311.85284014,0.00063014,120]
[358488206,1745206241821,-2311.85284014,0.00063014,120]
[358488208,1745206241830,-2311.85284014,0.00063014,120]
[358488210,1745206241840,-2311.85284014,0.00063014,120]
[358488212,1745206241849,-2311.85284014,0.00063014,120]
[358488214,1745206241859,-2311.85284014,0.00063014,120]
[358488215,1745206241868,-2311.85284014,0.00063014,120]
[358488216,1745206241877,-2311.85284014,0.00063014,120]
[358488217,1745206241887,-2311.85284014,0.00063014,120]
[358488218,1745206241897,-306.53445325,0.00063073,15]
[358488219,1745206241906,-962.79,0.000634,2]
[358488220,1745206241916,-192.56,0.000634,2]
[358488221,1745206241926,-1971.46,0.000634,2]
[358488222,1745206241935,-221.85598252,0.0006343,60]
[358488223,1745206241944,-9767.04424442,0.00063451,5]
[358488224,1745206241954,-1000.0,0.00063461,2]
[358488225,1745206241963,-10183.5126625,0.000635,7]
[358488226,1745206241973,-9767.04424442,0.00063541,5]
[358488227,1745206241983,-19534.0884888,0.00063549,5]
[358488228,1745206241993,-20560.3673553,0.00063551,4]
[358488229,1745206242003,-19534.0884888,0.00063551,5]
[358488230,1745206242012,-500.0,0.00063559,120]
[358488231,1745206242021,-522.21,0.00063559,120]
[358488232,1745206242030,-500.0,0.00063559,120]
[358488233,1745206242040,-500.0,0.00063559,120]
[358488234,1745206242049,-500.0,0.00063559,120]
[358488235,1745206242059,-994.36,0.00063559,120]
[358488236,1745206242068,-1864.78,0.00063559,120]
[358488237,1745206242077,-873.81,0.00063559,120]
[358488238,1745206242087,-702.1,0.00063559,120]
[358488239,1745206242096,-782.91,0.00063559,120]
[358488240,1745206242106,-174.26564995,0.00063559,120]
[358488241,1745206242115,-500.0,0.00063559,120]
[358488242,1745206242124,-561.80547083,0.00063559,120]
[358488243,1745206242133,-535.34739309,0.00063559,120]
[358488244,1745206242143,-500.0,0.00063559,120]
[358488245,1745206242152,-500.0,0.00063559,120]
[358488246,1745206242161,-500.0,0.00063559,120]
[358488247,1745206242170,-329.90160073,0.00063559,120]
[358488248,1745206242179,-500.0,0.00063559,120]
[358488249,1745206242189,-500.0,0.00063559,120]
[358488250,1745206242198,-167.35159671,0.00063559,120]
[358488251,1745206242207,-556.52182944,0.00063559,120]
[358488252,1745206242216,-500.0,0.00063559,120]
[358488253,1745206242225,-500.0,0.00063559,120]
[358488254,1745206242235,-368.42644452,0.00063559,20]
[358488255,1745206242244,-500.0,0.00063559,120]
[358488256,1745206242253,-500.0,0.00063559,120]
[358488257,1745206242265,-500.0,0.00063559,120]
[358488258,1745206242274,-500.0,0.00063559,120]
[358488259,1745206242283,-500.0,0.00063559,12]
[358488260,1745206242292,-450.96173492,0.00063559,120]
[358488261,1745206242302,-601.7052493,0.00063559,120]
[358488262,1745206242311,-654.68,0.00063559,120]
[358488263,1745206242321,-1142.18,0.00063559,120]
[358488264,1745206242330,-500.0,0.00063559,120]
[358488265,1745206242339,-641.45,0.00063559,120]
[358488266,1745206242348,-2229.31,0.00063559,7]